[Event "Titled Tuesday Blitz January 17 Early 2023"]
[White "Riehle, Marco"]
[Black "Sarana, Alexey"]
[WhiteFideId "12904392"]
[BlackFideId "24133795"]
[WhiteElo "2368"]
[BlackElo "2685"]
[Result "0-1"]
[Round "03"]
[TimeControl "180+2"]
[Date "2023.01.17"]
[WhiteClock "0:00:32"]
[BlackClock "0:01:08"]

1. e4 {[%clk 0:03:00]}  e5 {[%clk 0:02:56]} 2. Nf3 {[%clk 0:02:57]}  Nc6 {[%clk 0:02:55]} 3. d4 {[%clk 0:02:56]}  exd4 {[%clk 0:02:55]} 4. Bc4 {[%clk 0:02:56]}  Nf6 {[%clk 0:02:53]} 5. O-O {[%clk 0:02:56]}  d6 {[%clk 0:02:45]} 6. Nxd4 {[%clk 0:02:54]}  Be7 {[%clk 0:02:44]} 7. Nxc6 {[%clk 0:02:53]}  bxc6 {[%clk 0:02:45]} 8. Nc3 {[%clk 0:02:54]}  O-O {[%clk 0:02:45]} 9. Be3 {[%clk 0:02:42]}  Ng4 {[%clk 0:02:44]} 10. Bf4 {[%clk 0:02:40]}  Bf6 {[%clk 0:02:32]} 11. Bb3 {[%clk 0:02:33]}  a5 {[%clk 0:02:31]} 12. Qd2 {[%clk 0:02:28]}  Qe7 {[%clk 0:02:24]} 13. Rfe1 {[%clk 0:02:23]}  Ne5 {[%clk 0:02:22]} 14. Bg3 {[%clk 0:02:16]}  Nd7 {[%clk 0:02:21]} 15. Rad1 {[%clk 0:02:09]}  Nc5 {[%clk 0:02:19]} 16. Bc4 {[%clk 0:02:06]}  a4 {[%clk 0:02:09]} 17. b4 {[%clk 0:02:01]}  axb3 {[%clk 0:02:08]} 18. cxb3 {[%clk 0:02:01]}  Bg4 {[%clk 0:02:01]} 19. f3 {[%clk 0:01:56]}  Be6 {[%clk 0:02:00]} 20. Bxe6 {[%clk 0:01:49]}  Qxe6 {[%clk 0:01:58]} 21. Ne2 {[%clk 0:01:31]}  Ra6 {[%clk 0:01:50]} 22. Nf4 {[%clk 0:01:25]}  Qe7 {[%clk 0:01:50]} 23. Bf2 {[%clk 0:01:22]}  Rfa8 {[%clk 0:01:31]} 24. Bxc5 {[%clk 0:01:21]}  Rxa2 {[%clk 0:01:31]} 25. Bxd6 {[%clk 0:01:15]}  cxd6 {[%clk 0:01:31]} 26. Qxd6 {[%clk 0:01:08]}  Qxd6 {[%clk 0:01:29]} 27. Rxd6 {[%clk 0:01:07]}  Be5 {[%clk 0:01:29]} 28. Rxc6 {[%clk 0:01:08]}  Bxf4 {[%clk 0:01:28]} 29. b4 {[%clk 0:01:08]}  Rb2 {[%clk 0:01:26]} 30. g3 {[%clk 0:01:06]}  Be5 {[%clk 0:01:23]} 31. Rec1 {[%clk 0:01:04]}  g6 {[%clk 0:01:20]} 32. Rc8+ {[%clk 0:01:04]}  Rxc8 {[%clk 0:01:20]} 33. Rxc8+ {[%clk 0:01:05]}  Kg7 {[%clk 0:01:21]} 34. Rc4 {[%clk 0:01:03]}  Bd6 {[%clk 0:01:21]} 35. f4 {[%clk 0:01:02]}  Bxb4 {[%clk 0:01:21]} 36. e5 {[%clk 0:01:01]}  h5 {[%clk 0:01:20]} 37. Kh1 {[%clk 0:00:57]}  Kf8 {[%clk 0:01:20]} 38. h3 {[%clk 0:00:53]}  Be1 {[%clk 0:01:18]} 39. g4 {[%clk 0:00:53]}  Bg3 {[%clk 0:01:17]} 40. Kg1 {[%clk 0:00:50]}  h4 {[%clk 0:01:15]} 41. Re4 {[%clk 0:00:49]}  Rf2 {[%clk 0:01:13]} 42. f5 {[%clk 0:00:48]}  gxf5 {[%clk 0:01:14]} 43. gxf5 {[%clk 0:00:49]}  Rxf5 {[%clk 0:01:14]} 44. e6 {[%clk 0:00:49]}  f6 {[%clk 0:01:15]} 45. e7+ {[%clk 0:00:49]}  Ke8 {[%clk 0:01:15]} 46. Re3 {[%clk 0:00:42]}  Re5 {[%clk 0:01:14]} 47. Rf3 {[%clk 0:00:42]}  Kxe7 {[%clk 0:01:14]} 48. Kg2 {[%clk 0:00:42]}  f5 {[%clk 0:01:15]} 49. Ra3 {[%clk 0:00:42]}  Kf6 {[%clk 0:01:15]} 50. Kf3 {[%clk 0:00:42]}  Rc5 {[%clk 0:01:14]} 51. Ra6+ {[%clk 0:00:41]}  Kg5 {[%clk 0:01:15]} 52. Ra3 {[%clk 0:00:42]}  Rb5 {[%clk 0:01:15]} 53. Rc3 {[%clk 0:00:41]}  Rb1 {[%clk 0:01:14]} 54. Kg2 {[%clk 0:00:41]}  Rb2+ {[%clk 0:01:15]} 55. Kg1 {[%clk 0:00:38]}  Rd2 {[%clk 0:01:15]} 56. Rb3 {[%clk 0:00:38]}  Be5 {[%clk 0:01:15]} 57. Ra3 {[%clk 0:00:38]}  f4 {[%clk 0:01:15]} 58. Kh1 {[%clk 0:00:38]}  Kf5 {[%clk 0:01:16]} 59. Rb3 {[%clk 0:00:38]}  Ke4 {[%clk 0:01:16]} 60. Rb1 {[%clk 0:00:38]}  f3 {[%clk 0:01:15]} 61. Re1+ {[%clk 0:00:37]}  Kf4 {[%clk 0:01:15]} 62. Rf1 {[%clk 0:00:38]}  Re2 {[%clk 0:01:09]} 63. Rb1 {[%clk 0:00:37]}  Kg3 {[%clk 0:01:08]} 64. Rg1+ {[%clk 0:00:34]}  Kxh3 {[%clk 0:01:08]} 65. Rd1 {[%clk 0:00:32]}  Rh2+ {[%clk 0:01:08]} 0-1


[Site "https://www.chess.com"]

[Event "Titled Tuesday Blitz January 17 Early 2023"]
[White "Deac, Bogdan-Daniel"]
[Black "Maksimovic, Bojan"]
[WhiteFideId "1226380"]
[BlackFideId "14408120"]
[WhiteElo "2700"]
[BlackElo "2486"]
[Result "1-0"]
[Round "03"]
[TimeControl "180+2"]
[Date "2023.01.17"]
[WhiteClock "0:00:04"]
[BlackClock "0:00:04"]

1. c4 {[%clk 0:03:00]}  Nf6 {[%clk 0:02:59]} 2. Nf3 {[%clk 0:03:00]}  g6 {[%clk 0:02:58]} 3. Nc3 {[%clk 0:03:00]}  Bg7 {[%clk 0:02:58]} 4. e4 {[%clk 0:03:00]}  d6 {[%clk 0:02:58]} 5. d4 {[%clk 0:03:00]}  O-O {[%clk 0:02:58]} 6. Be2 {[%clk 0:02:58]}  Nbd7 {[%clk 0:02:58]} 7. Be3 {[%clk 0:02:58]}  e5 {[%clk 0:02:56]} 8. d5 {[%clk 0:02:58]}  a5 {[%clk 0:02:41]} 9. Nd2 {[%clk 0:02:56]}  Nc5 {[%clk 0:02:38]} 10. a3 {[%clk 0:02:55]}  Ne8 {[%clk 0:02:28]} 11. O-O {[%clk 0:02:05]}  f5 {[%clk 0:02:17]} 12. f3 {[%clk 0:02:03]}  Nf6 {[%clk 0:01:54]} 13. b4 {[%clk 0:02:01]}  axb4 {[%clk 0:01:52]} 14. axb4 {[%clk 0:02:01]}  Rxa1 {[%clk 0:01:52]} 15. Qxa1 {[%clk 0:02:02]}  Na6 {[%clk 0:01:52]} 16. Qb1 {[%clk 0:01:53]}  Nh5 {[%clk 0:01:47]} 17. c5 {[%clk 0:01:48]}  Nf4 {[%clk 0:01:41]} 18. Bxa6 {[%clk 0:01:47]}  bxa6 {[%clk 0:01:39]} 19. Nc4 {[%clk 0:01:48]}  Qg5 {[%clk 0:01:22]} 20. Qc2 {[%clk 0:01:34]}  Qe7 {[%clk 0:00:56]} 21. Qd2 {[%clk 0:01:11]}  g5 {[%clk 0:00:40]} 22. exf5 {[%clk 0:00:51]}  Bxf5 {[%clk 0:00:41]} 23. Ne4 {[%clk 0:00:51]}  Rd8 {[%clk 0:00:40]} 24. cxd6 {[%clk 0:00:43]}  cxd6 {[%clk 0:00:40]} 25. Ra1 {[%clk 0:00:23]}  Qb7 {[%clk 0:00:36]} 26. Ncxd6 {[%clk 0:00:18]}  Qd7 {[%clk 0:00:26]} 27. Nxf5 {[%clk 0:00:15]}  Qxf5 {[%clk 0:00:27]} 28. d6 {[%clk 0:00:15]}  g4 {[%clk 0:00:25]} 29. Bxf4 {[%clk 0:00:11]}  exf4 {[%clk 0:00:25]} 30. Ra5 {[%clk 0:00:09]}  Qg6 {[%clk 0:00:23]} 31. Qd5+ {[%clk 0:00:09]}  Kh8 {[%clk 0:00:24]} 32. Qf5 {[%clk 0:00:08]}  gxf3 {[%clk 0:00:07]} 33. Qxg6 {[%clk 0:00:08]}  hxg6 {[%clk 0:00:08]} 34. gxf3 {[%clk 0:00:08]}  Bf8 {[%clk 0:00:07]} 35. Rxa6 {[%clk 0:00:08]}  Kg7 {[%clk 0:00:07]} 36. b5 {[%clk 0:00:06]}  Kf7 {[%clk 0:00:05]} 37. Kf2 {[%clk 0:00:06]}  Ke6 {[%clk 0:00:05]} 38. Ke2 {[%clk 0:00:06]}  Kd5 {[%clk 0:00:06]} 39. Kd3 {[%clk 0:00:07]}  Rb8 {[%clk 0:00:05]} 40. d7 {[%clk 0:00:06]}  Be7 {[%clk 0:00:04]} 41. Rc6 {[%clk 0:00:05]}  Rxb5 {[%clk 0:00:04]} 42. Rc8 {[%clk 0:00:06]}  Rb3+ {[%clk 0:00:03]} 43. Nc3+ {[%clk 0:00:06]}  Ke6 {[%clk 0:00:02]} 44. d8=Q {[%clk 0:00:06]}  Bxd8 {[%clk 0:00:03]} 45. Rxd8 {[%clk 0:00:07]}  Rb2 {[%clk 0:00:03]} 46. Rh8 {[%clk 0:00:07]}  Kf6 {[%clk 0:00:03]} 47. Ne4+ {[%clk 0:00:07]}  Kg7 {[%clk 0:00:02]} 48. Rh3 {[%clk 0:00:07]}  Rb3+ {[%clk 0:00:02]} 49. Ke2 {[%clk 0:00:07]}  Rb2+ {[%clk 0:00:02]} 50. Kf1 {[%clk 0:00:07]}  Ra2 {[%clk 0:00:02]} 51. Nf2 {[%clk 0:00:06]}  Ra3 {[%clk 0:00:02]} 52. Kg2 {[%clk 0:00:06]}  Ra2 {[%clk 0:00:02]} 53. Rh4 {[%clk 0:00:07]}  g5 {[%clk 0:00:03]} 54. Rg4 {[%clk 0:00:06]}  Kf6 {[%clk 0:00:03]} 55. h4 {[%clk 0:00:07]}  gxh4 {[%clk 0:00:02]} 56. Rxf4+ {[%clk 0:00:07]}  Kg5 {[%clk 0:00:03]} 57. Rg4+ {[%clk 0:00:07]}  Kh5 {[%clk 0:00:03]} 58. Rg8 {[%clk 0:00:07]}  Ra3 {[%clk 0:00:02]} 59. Rh8+ {[%clk 0:00:07]}  Kg5 {[%clk 0:00:02]} 60. Ne4+ {[%clk 0:00:08]}  Kf5 {[%clk 0:00:01]} 61. Rxh4 {[%clk 0:00:08]}  Ra1 {[%clk 0:00:01]} 62. Ng3+ {[%clk 0:00:08]}  Kg5 {[%clk 0:00:02]} 63. Rg4+ {[%clk 0:00:08]}  Kf6 {[%clk 0:00:02]} 64. Re4 {[%clk 0:00:09]}  Kg5 {[%clk 0:00:03]} 65. Kh3 {[%clk 0:00:09]}  Ra3 {[%clk 0:00:03]} 66. f4+ {[%clk 0:00:09]}  Kf6 {[%clk 0:00:03]} 67. Kg4 {[%clk 0:00:10]}  Ra8 {[%clk 0:00:03]} 68. Nh5+ {[%clk 0:00:09]}  Kf7 {[%clk 0:00:04]} 69. f5 {[%clk 0:00:09]}  Ra1 {[%clk 0:00:05]} 70. Ng3 {[%clk 0:00:09]}  Rg1 {[%clk 0:00:06]} 71. Re3 {[%clk 0:00:09]}  Kf6 {[%clk 0:00:07]} 72. Kf4 {[%clk 0:00:09]}  Ra1 {[%clk 0:00:08]} 73. Ne4+ {[%clk 0:00:09]}  Kf7 {[%clk 0:00:09]} 74. Ng5+ {[%clk 0:00:09]}  Kf6 {[%clk 0:00:09]} 75. Re6+ {[%clk 0:00:09]}  Kg7 {[%clk 0:00:10]} 76. Re7+ {[%clk 0:00:10]}  Kf8 {[%clk 0:00:09]} 77. Rb7 {[%clk 0:00:09]}  Ra5 {[%clk 0:00:08]} 78. Ne6+ {[%clk 0:00:08]}  Ke8 {[%clk 0:00:09]} 79. Nd4 {[%clk 0:00:08]}  Rd5 {[%clk 0:00:09]} 80. Nf3 {[%clk 0:00:08]}  Rd1 {[%clk 0:00:09]} 81. Kg5 {[%clk 0:00:08]}  Rf1 {[%clk 0:00:09]} 82. Ne5 {[%clk 0:00:07]}  Kd8 {[%clk 0:00:06]} 83. Kf6 {[%clk 0:00:07]}  Kc8 {[%clk 0:00:07]} 84. Rg7 {[%clk 0:00:06]}  Ra1 {[%clk 0:00:06]} 85. Kg6 {[%clk 0:00:04]}  Ra5 {[%clk 0:00:05]} 86. Ng4 {[%clk 0:00:04]}  Ra4 {[%clk 0:00:05]} 87. Nh6 {[%clk 0:00:04]}  Kd8 {[%clk 0:00:04]} 88. f6 {[%clk 0:00:04]}  Ke8 {[%clk 0:00:04]} 89. Rg8+ {[%clk 0:00:04]}  Kd7 {[%clk 0:00:04]} 90. f7 {[%clk 0:00:04]} 1-0


[Site "https://www.chess.com"]

[Event "Titled Tuesday Blitz January 17 Early 2023"]
[White "Cherniaiev, Tykhon"]
[Black "Paravyan, David"]
[WhiteFideId "14182360"]
[BlackFideId "4194985"]
[WhiteElo "2330"]
[BlackElo "2601"]
[Result "0-1"]
[Round "03"]
[TimeControl "180+2"]
[Date "2023.01.17"]
[WhiteClock "0:00:18"]
[BlackClock "0:01:01"]

1. Nf3 {[%clk 0:03:00]}  Nf6 {[%clk 0:02:59]} 2. d4 {[%clk 0:03:00]}  g6 {[%clk 0:02:59]} 3. c4 {[%clk 0:03:00]}  Bg7 {[%clk 0:03:00]} 4. Nc3 {[%clk 0:03:00]}  d5 {[%clk 0:03:00]} 5. Bg5 {[%clk 0:03:00]}  Ne4 {[%clk 0:02:57]} 6. cxd5 {[%clk 0:03:01]}  Nxg5 {[%clk 0:02:57]} 7. Nxg5 {[%clk 0:03:02]}  e6 {[%clk 0:02:58]} 8. Nf3 {[%clk 0:03:02]}  exd5 {[%clk 0:02:58]} 9. e3 {[%clk 0:03:03]}  O-O {[%clk 0:02:58]} 10. Bd3 {[%clk 0:03:04]}  a5 {[%clk 0:02:58]} 11. a3 {[%clk 0:03:04]}  c6 {[%clk 0:02:58]} 12. O-O {[%clk 0:03:04]}  Re8 {[%clk 0:02:56]} 13. b4 {[%clk 0:03:04]}  axb4 {[%clk 0:02:56]} 14. axb4 {[%clk 0:03:05]}  Rxa1 {[%clk 0:02:56]} 15. Qxa1 {[%clk 0:03:06]}  Qd6 {[%clk 0:02:56]} 16. Qa5 {[%clk 0:02:36]}  Bg4 {[%clk 0:02:52]} 17. Be2 {[%clk 0:02:26]}  Nd7 {[%clk 0:02:50]} 18. h3 {[%clk 0:02:15]}  Bf5 {[%clk 0:02:40]} 19. Nd2 {[%clk 0:01:51]}  Bf8 {[%clk 0:02:37]} 20. b5 {[%clk 0:01:35]}  Qb4 {[%clk 0:02:33]} 21. Qxb4 {[%clk 0:00:52]}  Bxb4 {[%clk 0:02:34]} 22. Rc1 {[%clk 0:00:46]}  Ra8 {[%clk 0:02:34]} 23. bxc6 {[%clk 0:00:44]}  bxc6 {[%clk 0:02:35]} 24. Nf3 {[%clk 0:00:43]}  Ra3 {[%clk 0:02:23]} 25. Nd1 {[%clk 0:00:40]}  c5 {[%clk 0:02:23]} 26. dxc5 {[%clk 0:00:38]}  Nxc5 {[%clk 0:02:17]} 27. Nd4 {[%clk 0:00:37]}  Nb3 {[%clk 0:02:12]} 28. Nxb3 {[%clk 0:00:28]}  Rxb3 {[%clk 0:02:13]} 29. Bf3 {[%clk 0:00:14]}  Be6 {[%clk 0:02:12]} 30. g4 {[%clk 0:00:09]}  d4 {[%clk 0:02:08]} 31. Kg2 {[%clk 0:00:08]}  Bd2 {[%clk 0:02:02]} 32. Rc2 {[%clk 0:00:05]}  dxe3 {[%clk 0:02:00]} 33. Nxe3 {[%clk 0:00:06]}  Bxe3 {[%clk 0:02:00]} 34. fxe3 {[%clk 0:00:07]}  Rxe3 {[%clk 0:02:00]} 35. Kf2 {[%clk 0:00:07]}  Ra3 {[%clk 0:02:01]} 36. Rd2 {[%clk 0:00:07]}  Kg7 {[%clk 0:02:00]} 37. Rb2 {[%clk 0:00:07]}  Kf6 {[%clk 0:01:59]} 38. Rb5 {[%clk 0:00:06]}  h6 {[%clk 0:01:57]} 39. Rc5 {[%clk 0:00:04]}  Rd3 {[%clk 0:01:55]} 40. Rb5 {[%clk 0:00:04]}  Rc3 {[%clk 0:01:55]} 41. Ra5 {[%clk 0:00:04]}  Bd7 {[%clk 0:01:53]} 42. Kg2 {[%clk 0:00:03]}  Be6 {[%clk 0:01:50]} 43. Kf2 {[%clk 0:00:03]}  Ke7 {[%clk 0:01:50]} 44. Ra7+ {[%clk 0:00:02]}  Kd6 {[%clk 0:01:50]} 45. Ra5 {[%clk 0:00:03]}  Rb3 {[%clk 0:01:46]} 46. Kg2 {[%clk 0:00:03]}  Re3 {[%clk 0:01:40]} 47. Kf2 {[%clk 0:00:03]}  Rd3 {[%clk 0:01:40]} 48. Ra6+ {[%clk 0:00:03]}  Ke5 {[%clk 0:01:40]} 49. Ra5+ {[%clk 0:00:03]}  Kf4 {[%clk 0:01:33]} 50. Ra4+ {[%clk 0:00:03]}  Kg5 {[%clk 0:01:34]} 51. Ke2 {[%clk 0:00:01]}  Rc3 {[%clk 0:01:31]} 52. Kf2 {[%clk 0:00:02]}  Kh4 {[%clk 0:01:29]} 53. Bg2 {[%clk 0:00:02]}  Rc2+ {[%clk 0:01:29]} 54. Kf1 {[%clk 0:00:02]}  Rb2 {[%clk 0:01:28]} 55. Kg1 {[%clk 0:00:02]}  Kg3 {[%clk 0:01:26]} 56. Ra3+ {[%clk 0:00:03]}  Bb3 {[%clk 0:01:24]} 57. Be4 {[%clk 0:00:03]}  Kf4 {[%clk 0:01:16]} 58. Bg2 {[%clk 0:00:03]}  Be6 {[%clk 0:01:02]} 59. Rf3+ {[%clk 0:00:02]}  Kg5 {[%clk 0:01:02]} 60. Rd3 {[%clk 0:00:01]}  Kh4 {[%clk 0:01:01]} 61. Re3 {[%clk 0:00:01]}  Rd2 {[%clk 0:01:00]} 62. Rc3 {[%clk 0:00:02]}  Re2 {[%clk 0:00:56]} 63. Rd3 {[%clk 0:00:02]}  Rc2 {[%clk 0:00:57]} 64. Re3 {[%clk 0:00:02]}  Bc4 {[%clk 0:00:55]} 65. Rf3 {[%clk 0:00:01]}  Rxg2+ {[%clk 0:00:55]} 66. Kxg2 {[%clk 0:00:02]}  Bd5 {[%clk 0:00:56]} 67. Kf2 {[%clk 0:00:03]}  Bxf3 {[%clk 0:00:56]} 68. Kxf3 {[%clk 0:00:03]}  Kxh3 {[%clk 0:00:56]} 69. Kf4 {[%clk 0:00:04]}  Kh4 {[%clk 0:00:56]} 70. Kf3 {[%clk 0:00:05]}  Kg5 {[%clk 0:00:56]} 71. Kg3 {[%clk 0:00:06]}  f6 {[%clk 0:00:56]} 72. Kf3 {[%clk 0:00:06]}  h5 {[%clk 0:00:56]} 73. gxh5 {[%clk 0:00:06]}  Kxh5 {[%clk 0:00:57]} 74. Kg3 {[%clk 0:00:07]}  Kg5 {[%clk 0:00:58]} 75. Kf3 {[%clk 0:00:08]}  f5 {[%clk 0:00:56]} 76. Kg3 {[%clk 0:00:09]}  Kf6 {[%clk 0:00:56]} 77. Kf3 {[%clk 0:00:10]}  g5 {[%clk 0:00:56]} 78. Kg3 {[%clk 0:00:11]}  Ke5 {[%clk 0:00:57]} 79. Kf3 {[%clk 0:00:11]}  Kd4 {[%clk 0:00:58]} 80. Kg3 {[%clk 0:00:11]}  Ke3 {[%clk 0:00:58]} 81. Kg2 {[%clk 0:00:12]}  f4 {[%clk 0:00:57]} 82. Kg1 {[%clk 0:00:11]}  g4 {[%clk 0:00:57]} 83. Kg2 {[%clk 0:00:12]}  Ke2 {[%clk 0:00:58]} 84. Kg1 {[%clk 0:00:12]}  Kf3 {[%clk 0:00:58]} 85. Kf1 {[%clk 0:00:13]}  g3 {[%clk 0:00:59]} 86. Kg1 {[%clk 0:00:13]}  Kg4 {[%clk 0:00:58]} 87. Kg2 {[%clk 0:00:14]}  f3+ {[%clk 0:00:59]} 88. Kg1 {[%clk 0:00:14]}  Kf4 {[%clk 0:00:59]} 89. Kh1 {[%clk 0:00:15]}  Ke3 {[%clk 0:00:59]} 90. Kg1 {[%clk 0:00:15]}  Ke2 {[%clk 0:00:59]} 91. Kh1 {[%clk 0:00:16]}  Ke1 {[%clk 0:00:59]} 92. Kg1 {[%clk 0:00:16]}  g2 {[%clk 0:00:59]} 93. Kh2 {[%clk 0:00:16]}  Kf2 {[%clk 0:01:00]} 94. Kh3 {[%clk 0:00:16]}  g1=Q {[%clk 0:01:00]} 95. Kh4 {[%clk 0:00:17]}  Qg6 {[%clk 0:01:01]} 96. Kh3 {[%clk 0:00:18]}  Qg3# {[%clk 0:01:01]} 0-1


[Site "https://www.chess.com"]

[Event "Titled Tuesday Blitz January 17 Early 2023"]
[White "Sychev, Klementy"]
[Black "Bluebaum, Matthias"]
[WhiteFideId "4114060"]
[BlackFideId "24651516"]
[WhiteElo "2547"]
[BlackElo "2669"]
[Result "0-1"]
[Round "03"]
[TimeControl "180+2"]
[Date "2023.01.17"]
[WhiteClock "0:00:02"]
[BlackClock "0:01:07"]

1. e4 {[%clk 0:02:57]}  e6 {[%clk 0:02:59]} 2. d4 {[%clk 0:02:53]}  d5 {[%clk 0:02:59]} 3. exd5 {[%clk 0:02:54]}  exd5 {[%clk 0:03:00]} 4. Nf3 {[%clk 0:02:54]}  Nc6 {[%clk 0:02:59]} 5. Bb5 {[%clk 0:02:52]}  a6 {[%clk 0:02:59]} 6. Ba4 {[%clk 0:02:40]}  b5 {[%clk 0:02:43]} 7. Bb3 {[%clk 0:02:40]}  Be6 {[%clk 0:02:44]} 8. a4 {[%clk 0:02:36]}  Na5 {[%clk 0:02:40]} 9. axb5 {[%clk 0:02:29]}  Nxb3 {[%clk 0:02:40]} 10. cxb3 {[%clk 0:02:28]}  axb5 {[%clk 0:02:41]} 11. Rxa8 {[%clk 0:02:28]}  Qxa8 {[%clk 0:02:42]} 12. O-O {[%clk 0:02:11]}  h6 {[%clk 0:02:41]} 13. Bf4 {[%clk 0:02:07]}  c6 {[%clk 0:02:38]} 14. Re1 {[%clk 0:01:59]}  Bb4 {[%clk 0:02:36]} 15. Bd2 {[%clk 0:00:59]}  Bd6 {[%clk 0:02:34]} 16. Ne5 {[%clk 0:00:59]}  Nf6 {[%clk 0:02:24]} 17. Nc3 {[%clk 0:00:53]}  O-O {[%clk 0:02:24]} 18. Qf3 {[%clk 0:00:53]}  b4 {[%clk 0:02:20]} 19. Na4 {[%clk 0:00:46]}  Ne4 {[%clk 0:02:20]} 20. Bc1 {[%clk 0:00:37]}  c5 {[%clk 0:02:12]} 21. Be3 {[%clk 0:00:24]}  c4 {[%clk 0:01:54]} 22. Nb6 {[%clk 0:00:18]}  Qb7 {[%clk 0:01:54]} 23. bxc4 {[%clk 0:00:18]}  Qxb6 {[%clk 0:01:40]} 24. c5 {[%clk 0:00:18]}  Nxc5 {[%clk 0:01:41]} 25. dxc5 {[%clk 0:00:18]}  Bxc5 {[%clk 0:01:42]} 26. h4 {[%clk 0:00:13]}  Bxe3 {[%clk 0:01:41]} 27. Rxe3 {[%clk 0:00:13]}  Rc8 {[%clk 0:01:38]} 28. Qh5 {[%clk 0:00:12]}  Qd4 {[%clk 0:01:32]} 29. Kh2 {[%clk 0:00:08]}  Qf4+ {[%clk 0:01:27]} 30. Rg3 {[%clk 0:00:07]}  Qxf2 {[%clk 0:01:08]} 31. Nd3 {[%clk 0:00:08]}  Qf6 {[%clk 0:01:07]} 32. Nxb4 {[%clk 0:00:08]}  Rc4 {[%clk 0:01:07]} 33. Nxd5 {[%clk 0:00:02]}  Rxh4+ {[%clk 0:01:07]} 34. Kg1 {[%clk 0:00:02]}  Qd4+ {[%clk 0:01:07]} 0-1


[Site "https://www.chess.com"]

[Event "Titled Tuesday Blitz January 17 Early 2023"]
[White "Bortnyk, Olexandr"]
[Black "Lortkipanidze, Nodar"]
[WhiteFideId "14120828"]
[BlackFideId "13604058"]
[WhiteElo "2605"]
[BlackElo "2406"]
[Result "1-0"]
[Round "03"]
[TimeControl "180+2"]
[Date "2023.01.17"]
[WhiteClock "0:00:12"]
[BlackClock "0:00:21"]

1. e4 {[%clk 0:03:00]}  e5 {[%clk 0:03:00]} 2. Nf3 {[%clk 0:02:58]}  Nf6 {[%clk 0:03:00]} 3. Nxe5 {[%clk 0:02:58]}  Nxe4 {[%clk 0:03:01]} 4. Qe2 {[%clk 0:02:57]}  Qe7 {[%clk 0:03:01]} 5. Qxe4 {[%clk 0:02:57]}  d6 {[%clk 0:03:01]} 6. d4 {[%clk 0:02:58]}  dxe5 {[%clk 0:03:02]} 7. dxe5 {[%clk 0:02:57]}  Nc6 {[%clk 0:03:02]} 8. f4 {[%clk 0:02:55]}  Bg4 {[%clk 0:02:53]} 9. Nc3 {[%clk 0:02:44]}  O-O-O {[%clk 0:02:50]} 10. Be3 {[%clk 0:02:43]}  g6 {[%clk 0:02:40]} 11. Ba6 {[%clk 0:02:40]}  Kb8 {[%clk 0:02:32]} 12. O-O {[%clk 0:02:35]}  Qb4 {[%clk 0:02:23]} 13. Bd3 {[%clk 0:02:20]}  Qxb2 {[%clk 0:02:11]} 14. Rab1 {[%clk 0:02:10]}  Qxc3 {[%clk 0:02:05]} 15. Rb3 {[%clk 0:02:09]}  Rxd3 {[%clk 0:01:32]} 16. cxd3 {[%clk 0:02:02]}  Qxb3 {[%clk 0:01:16]} 17. axb3 {[%clk 0:02:02]}  Bf5 {[%clk 0:01:17]} 18. Qd5 {[%clk 0:01:58]}  Be6 {[%clk 0:01:15]} 19. Qf3 {[%clk 0:01:53]}  Bb4 {[%clk 0:01:14]} 20. g4 {[%clk 0:01:51]}  Rd8 {[%clk 0:01:14]} 21. f5 {[%clk 0:01:45]}  gxf5 {[%clk 0:01:07]} 22. gxf5 {[%clk 0:01:46]}  Bxb3 {[%clk 0:00:51]} 23. d4 {[%clk 0:01:24]}  Bd5 {[%clk 0:00:48]} 24. Qg4 {[%clk 0:01:17]}  a5 {[%clk 0:00:48]} 25. Ra1 {[%clk 0:01:06]}  Bc3 {[%clk 0:00:45]} 26. Rc1 {[%clk 0:01:01]}  Bb4 {[%clk 0:00:43]} 27. Qg5 {[%clk 0:00:48]}  Be7 {[%clk 0:00:35]} 28. Qg7 {[%clk 0:00:42]}  a4 {[%clk 0:00:35]} 29. Bg5 {[%clk 0:00:39]}  f6 {[%clk 0:00:35]} 30. exf6 {[%clk 0:00:37]}  Ba3 {[%clk 0:00:30]} 31. Re1 {[%clk 0:00:19]}  Bb2 {[%clk 0:00:28]} 32. f7 {[%clk 0:00:17]}  Bxd4+ {[%clk 0:00:22]} 33. Qxd4 {[%clk 0:00:17]}  Nxd4 {[%clk 0:00:23]} 34. Re8 {[%clk 0:00:18]}  Nf3+ {[%clk 0:00:23]} 35. Kf2 {[%clk 0:00:18]}  Bxf7 {[%clk 0:00:22]} 36. Rxd8+ {[%clk 0:00:18]}  Ka7 {[%clk 0:00:23]} 37. Kxf3 {[%clk 0:00:19]}  b5 {[%clk 0:00:24]} 38. Rd7 {[%clk 0:00:17]}  Bh5+ {[%clk 0:00:24]} 39. Ke4 {[%clk 0:00:16]}  Kb6 {[%clk 0:00:25]} 40. Be3+ {[%clk 0:00:13]}  Kc6 {[%clk 0:00:25]} 41. Rxh7 {[%clk 0:00:13]}  Bd1 {[%clk 0:00:26]} 42. Rh6+ {[%clk 0:00:12]}  Kb7 {[%clk 0:00:26]} 43. Bc5 {[%clk 0:00:13]}  Bb3 {[%clk 0:00:22]} 44. h4 {[%clk 0:00:12]}  c6 {[%clk 0:00:22]} 45. Kd4 {[%clk 0:00:12]}  Bd5 {[%clk 0:00:21]} 46. Rh7+ {[%clk 0:00:12]}  Kb8 {[%clk 0:00:20]} 47. f6 {[%clk 0:00:12]}  Kc8 {[%clk 0:00:21]} 48. f7 {[%clk 0:00:12]} 1-0


[Site "https://www.chess.com"]

[Event "Titled Tuesday Blitz January 17 Early 2023"]
[White "Lazavik, Denis"]
[Black "Mikhailovsky, Vladimir"]
[WhiteFideId "13515110"]
[BlackFideId "34105414"]
[WhiteElo "2544"]
[BlackElo "2215"]
[Result "1-0"]
[Round "03"]
[TimeControl "180+2"]
[Date "2023.01.17"]
[WhiteClock "0:00:59"]
[BlackClock "0:00:02"]

1. d4 {[%clk 0:03:00]}  d6 {[%clk 0:02:59]} 2. c4 {[%clk 0:03:01]}  e5 {[%clk 0:02:59]} 3. Nf3 {[%clk 0:02:56]}  e4 {[%clk 0:02:58]} 4. Nfd2 {[%clk 0:02:53]}  f5 {[%clk 0:02:58]} 5. Nc3 {[%clk 0:02:50]}  Nf6 {[%clk 0:02:54]} 6. e3 {[%clk 0:02:51]}  Be7 {[%clk 0:02:52]} 7. b4 {[%clk 0:02:46]}  O-O {[%clk 0:02:51]} 8. Qb3 {[%clk 0:02:46]}  Kh8 {[%clk 0:02:49]} 9. a4 {[%clk 0:02:46]}  Be6 {[%clk 0:02:47]} 10. b5 {[%clk 0:02:40]}  Nbd7 {[%clk 0:02:45]} 11. Be2 {[%clk 0:02:39]}  Bg8 {[%clk 0:02:31]} 12. Ba3 {[%clk 0:02:39]}  d5 {[%clk 0:02:26]} 13. Bxe7 {[%clk 0:02:24]}  Qxe7 {[%clk 0:02:27]} 14. Qa3 {[%clk 0:02:15]}  Qe8 {[%clk 0:02:13]} 15. g3 {[%clk 0:02:08]}  dxc4 {[%clk 0:02:01]} 16. Nxc4 {[%clk 0:02:07]}  Nb6 {[%clk 0:01:59]} 17. Ne5 {[%clk 0:02:05]}  Nbd5 {[%clk 0:01:58]} 18. Nxd5 {[%clk 0:02:00]}  Bxd5 {[%clk 0:01:57]} 19. O-O {[%clk 0:01:58]}  Nd7 {[%clk 0:01:52]} 20. Nxd7 {[%clk 0:01:56]}  Qxd7 {[%clk 0:01:53]} 21. Rfc1 {[%clk 0:01:55]}  g5 {[%clk 0:01:43]} 22. Bc4 {[%clk 0:01:27]}  Bxc4 {[%clk 0:01:29]} 23. Rxc4 {[%clk 0:01:28]}  f4 {[%clk 0:01:30]} 24. Qc5 {[%clk 0:01:25]}  Rae8 {[%clk 0:00:34]} 25. Qxg5 {[%clk 0:01:20]}  fxe3 {[%clk 0:00:11]} 26. fxe3 {[%clk 0:01:12]}  Re7 {[%clk 0:00:06]} 27. Rac1 {[%clk 0:01:07]}  Ref7 {[%clk 0:00:02]} 28. Qe5+ {[%clk 0:01:00]}  Kg8 {[%clk 0:00:02]} 29. Rxc7 {[%clk 0:00:59]} 1-0


[Site "https://www.chess.com"]